[Event "EWIBCC 2019"]
[Site "Monte-Carlo"]
[Date "2019.11.29"]
[Round "11.2"]
[White "Bulmaga, Irina"]
[Black "Sebag, Marie"]
[Result "0-1"]
[ECO "B22"]
[WhiteElo "2435"]
[BlackElo "2443"]
[Annotator "NA"]
[PlyCount "84"]
[EventDate "2019.11.29"]
[EventType "swiss"]
[EventCountry "MNC"]
[SourceTitle "playchess.com"]
[Source "ChessBase"]
[SourceQuality "1"]
[TimeControl "180+2"]

1. e4 {[%emt 0:00:00]} c5 {[%emt 0:00:00]} 2. Be2 {[%emt 0:00:00]} Nf6 {[%emt 0:00:12]} 3. d3 {[%emt 0:00:02]} Nc6 {[%emt 0:00:16]} 4. f4 {[%emt 0:00:02]} d6 {[%emt 0:00:01]} 5. Nf3 {[%emt 0:00:02]} g6 {[%emt 0:00:00]} 6. O-O {[%emt 0:00:03]} Bg7 {[%emt 0:00:01]} 7. c3 {[%emt 0:00:04]} O-O {[%emt 0:00:02]} 8. Kh1 {[%emt 0:00:01]} Rb8 {[%emt 0:00:04]} 9. Be3 {[%emt 0:00:02]} b5 {[%emt 0:00:12]} 10. a3 {[%emt 0:00:01]} Bb7 {[%emt 0:00:08]} 11. Nbd2 {[%emt 0:00:02]} e6 {[%emt 0:00:06]} 12. d4 {[%emt 0:00:04]} cxd4 {[%emt 0:00:06]} 13. cxd4 {[%emt 0:00:01]} a6 {[%emt 0:00:08]} 14. Bd3 {[%emt 0:00:04]} Ne7 {[%emt 0:00:11]} 15. Qe2 {[%emt 0:00:14]} d5 {[%emt 0:00:03]} 16. e5 {[%emt 0:00:04]} Ne4 {[%emt 0:00:01]} 17. Bg1 {[%emt 0:00:17]} Rc8 {[%emt 0:00:14]} 18. a4 {[%emt 0:00:11]} bxa4 {[%emt 0:00:18]} 19. Rxa4 {[%emt 0:00:04]} Qb6 {[%emt 0:00:06]} 20. Bxe4 {[%emt 0:00:36]} dxe4 {[%emt 0:00:03]} 21. Nxe4 {[%emt 0:00:10]} Qb5 {[%emt 0:00:21]} 22. Nc3 {[%emt 0:00:27]} Rxc3 {[%emt 0:00:15]} 23. Qxb5 axb5 24. Ra7 {[%emt 0:00:06]} Rc7 {[%emt 0:00:06]} 25. Rfa1 {[%emt 0:00:15]} Rfc8 {[%emt 0:00:02]} 26. Nd2 {[%emt 0:00:07]} Bd5 {[%emt 0:00:18]} 27. Rxc7 {[%emt 0:00:11]} Rxc7 {[%emt 0:00:00]} 28. h3 {[%emt 0:00:01]} Rc2 {[%emt 0:00:06]} 29. Nf3 {[%emt 0:00:08]} Rxb2 {[%emt 0:00:38]} 30. Be3 {[%emt 0:00:06]} h6 {[%emt 0:00:00]} 31. Ne1 {[%emt 0:00:11]} Nf5 {[%emt 0:00:00]} 32. Bg1 {[%emt 0:00:02]} b4 {[%emt 0:00:00]} 33. Kh2 {[%emt 0:00:06]} b3 {[%emt 0:00:00]} 34. Rc1 {[%emt 0:00:01]} Ra2 {[%emt 0:00:00]} 35. Rb1 {[%emt 0:00:03]} Bf8 {[%emt 0:00:00]} 36. h4 {[%emt 0:00:02]} Nxh4 {[%emt 0:00:00]} 37. Kh3 {[%emt 0:00:01]} Nxg2 {[%emt 0:00:00]} 38. Nxg2 {[%emt 0:00:01]} Bxg2+ {[%emt 0:00:00]} 39. Kg3 {[%emt 0:00:01]} Bd5 {[%emt 0:00:00]} 40. Be3 {[%emt 0:00:01]} b2 {[%emt 0:00:00]} 41. Bd2 {[%emt 0:00:04]} Ba3 {[%emt 0:00:00]} 42. Bc3 {[%emt 0:00:02]} Be4 {[%emt 0:00:00]} 0-1

[Event "EWIBCC 2019"]
[Site "Monte-Carlo"]
[Date "2019.11.29"]
[Round "11.4"]
[White "Mkrtchian, Lilit"]
[Black "Muzychuk, Anna"]
[Result "0-1"]
[ECO "A10"]
[WhiteElo "2402"]
[BlackElo "2543"]
[Annotator "ChessBase"]
[PlyCount "60"]
[EventDate "2019.11.29"]
[EventType "swiss"]
[EventCountry "MNC"]
[SourceTitle "playchess.com"]
[Source "ChessBase"]
[SourceQuality "1"]
[TimeControl "180+2"]

1. c4 {[%emt 0:00:00]} f5 {[%emt 0:00:00]} 2. g3 {[%emt 0:00:03]} Nf6 {[%emt 0:00:00]} 3. Bg2 {[%emt 0:00:01]} g6 {[%emt 0:00:00]} 4. b3 {[%emt 0:00:12]} Bg7 {[%emt 0:00:01]} 5. Bb2 {[%emt 0:00:01]} d6 {[%emt 0:00:01]} 6. d4 {[%emt 0:00:11]} O-O {[%emt 0:00:05]} 7. e3 {[%emt 0:00:09]} c6 {[%emt 0:00:04]} 8. Ne2 {[%emt 0:00:03]} Qc7 {[%emt 0:00:03]} 9. Nbc3 {[%emt 0:00:08]} e5 {[%emt 0:00:03]} 10. Qc2 {[%emt 0:00:38]} Na6 {[%emt 0:00:04]} 11. Ba3 {[%emt 0:00:07]} Re8 {[%emt 0:00:13]} 12. O-O-O {[%emt 0:00:09]} Bf8 {[%emt 0:00:10]} 13. Kb1 {[%emt 0:00:17]} Qa5 {[%emt 0:00:06]} 14. Bb2 {[%emt 0:00:37]} Ng4 {[%emt 0:00:05]} 15. Nc1 {[%emt 0:00:18]} Rb8 {[%emt 0:00:31]} 16. h3 {[%emt 0:00:02]} Nf6 {[%emt 0:00:00]} 17. f4 {[%emt 0:00:14]} exd4 {[%emt 0:00:04]} 18. exd4 {[%emt 0:00:03]} d5 {[%emt 0:00:19]} 19. c5 {[%emt 0:00:04]} b6 {[%emt 0:00:07]} 20. cxb6 {[%emt 0:00:02]} axb6 {[%emt 0:00:03]} 21. Rhe1 {[%emt 0:00:03]} Ne4 {[%emt 0:00:12]} 22. Nxe4 {[%emt 0:00:02]} fxe4 {[%emt 0:00:02]} 23. Qxc6 {[%emt 0:00:06]} Nb4 {[%emt 0:00:31]} 24. Qxe8 {[%emt 0:00:03]} Bf5 {[%emt 0:00:06]} 25. Qxb8 {[%emt 0:00:05]} e3+ {[%emt 0:00:02]} 26. Rd3 {[%emt 0:00:04]} Bxd3+ {[%emt 0:00:02]} 27. Nxd3 {[%emt 0:00:02]} Qxa2+ {[%emt 0:00:01]} 28. Kc1 {[%emt 0:00:02]} Nxd3+ {[%emt 0:00:01]} 29. Kc2 {[%emt 0:00:03]} Nxe1+ {[%emt 0:00:06]} 30. Kc3 {[%emt 0:00:00]} Qa5+ {[%emt 0:00:04]} 0-1

[Event "EWIBCC 2019"]
[Site "Monte-Carlo"]
[Date "2019.11.29"]
[Round "11.5"]
[White "Dzagnidze, Nana"]
[Black "Belenkaya, Dina"]
[Result "1-0"]
[ECO "A26"]
[WhiteElo "2502"]
[BlackElo "2302"]
[Annotator "ChessBase"]
[PlyCount "113"]
[EventDate "2019.11.29"]
[EventType "swiss"]
[EventCountry "MNC"]
[SourceTitle "playchess.com"]
[Source "ChessBase"]
[SourceQuality "1"]
[TimeControl "180+2"]

1. c4 {[%emt 0:00:00]} e5 {[%emt 0:00:00]} 2. Nc3 {[%emt 0:00:01]} Nc6 {[%emt 0:00:03]} 3. Nf3 {[%emt 0:00:02]} g6 {[%emt 0:00:07]} 4. g3 {[%emt 0:00:06]} Bg7 {[%emt 0:00:01]} 5. Bg2 {[%emt 0:00:02]} d6 {[%emt 0:00:01]} 6. d3 {[%emt 0:00:09]} Nge7 {[%emt 0:00:02]} 7. Rb1 {[%emt 0:00:05]} O-O {[%emt 0:00:05]} 8. b4 {[%emt 0:00:08]} f5 {[%emt 0:00:31]} 9. Bd2 {[%emt 0:00:10]} Be6 {[%emt 0:00:06]} 10. O-O {[%emt 0:00:07]} Qd7 {[%emt 0:00:02]} 11. Ng5 {[%emt 0:00:03]} Kh8 {[%emt 0:00:40]} 12. Nxe6 {[%emt 0:00:12]} Qxe6 {[%emt 0:00:01]} 13. b5 {[%emt 0:00:16]} Nd8 {[%emt 0:00:02]} 14. Nd5 {[%emt 0:00:10]} Qd7 {[%emt 0:00:04]} 15. Bc3 {[%emt 0:00:02]} Ne6 {[%emt 0:00:06]} 16. Nxe7 {[%emt 0:00:04]} Qxe7 {[%emt 0:00:01]} 17. Bxb7 {[%emt 0:00:01]} Rab8 {[%emt 0:00:01]} 18. Bg2 {[%emt 0:00:03]} Nd4 {[%emt 0:00:05]} 19. e3 {[%emt 0:00:06]} Ne6 {[%emt 0:00:01]} 20. f4 {[%emt 0:00:07]} Rbd8 {[%emt 0:00:17]} 21. Bd5 {[%emt 0:00:17]} Nc5 {[%emt 0:00:10]} 22. Qd2 {[%emt 0:00:12]} Rfe8 {[%emt 0:00:09]} 23. Rbe1 {[%emt 0:00:05]} e4 {[%emt 0:00:07]} 24. dxe4 {[%emt 0:00:17]} Nxe4 {[%emt 0:00:23]} 25. Bxe4 {[%emt 0:00:05]} Qxe4 {[%emt 0:00:05]} 26. Bxg7+ {[%emt 0:00:04]} Kxg7 {[%emt 0:00:01]} 27. Qd4+ {[%emt 0:00:08]} Kf7 {[%emt 0:00:01]} 28. Qxa7 {[%emt 0:00:13]} Rd7 {[%emt 0:00:13]} 29. Qd4 {[%emt 0:00:19]} Ra8 {[%emt 0:00:27]} 30. Rf2 {[%emt 0:00:13]} Ra3 {[%emt 0:00:01]} 31. Qxe4 {[%emt 0:00:04]} fxe4 {[%emt 0:00:02]} 32. Rc2 {[%emt 0:00:00]} Ke6 {[%emt 0:00:04]} 33. Kf2 {[%emt 0:00:05]} d5 {[%emt 0:00:01]} 34. cxd5+ {[%emt 0:00:01]} Rxd5 {[%emt 0:00:02]} 35. Rec1 {[%emt 0:00:08]} Rxb5 {[%emt 0:00:02]} 36. Rc6+ {[%emt 0:00:01]} Kf5 {[%emt 0:00:01]} 37. R1c5+ {[%emt 0:00:02]} Rxc5 {[%emt 0:00:01]} 38. Rxc5+ {[%emt 0:00:01]} Ke6 {[%emt 0:00:02]} 39. Re5+ {[%emt 0:00:02]} Kf6 {[%emt 0:00:01]} 40. Rxe4 {[%emt 0:00:02]} Rxa2+ {[%emt 0:00:00]} 41. Kf3 {[%emt 0:00:01]} Rxh2 {[%emt 0:00:02]} 42. Rc4 {[%emt 0:00:00]} h5 {[%emt 0:00:03]} 43. Rc6+ {[%emt 0:00:03]} Kf7 {[%emt 0:00:04]} 44. Rxc7+ {[%emt 0:00:02]} Kf6 {[%emt 0:00:01]} 45. e4 {[%emt 0:00:02]} Rh1 {[%emt 0:00:03]} 46. e5+ {[%emt 0:00:06]} Ke6 {[%emt 0:00:01]} 47. Rg7 {[%emt 0:00:01]} Rf1+ {[%emt 0:00:08]} 48. Kg2 {[%emt 0:00:01]} Re1 {[%emt 0:00:01]} 49. Rxg6+ {[%emt 0:00:01]} Kf5 {[%emt 0:00:01]} 50. Rg5+ {[%emt 0:00:01]} Ke4 {[%emt 0:00:01]} 51. e6 {[%emt 0:00:05]} Re2+ {[%emt 0:00:03]} 52. Kf1 {[%emt 0:00:01]} Kf3 {[%emt 0:00:00]} 53. Re5 {[%emt 0:00:01]} Ra2 {[%emt 0:00:02]} 54. e7 {[%emt 0:00:02]} Rh2 {[%emt 0:00:02]} 55. Ke1 {[%emt 0:00:02]} Rh1+ {[%emt 0:00:02]} 56. Kd2 {[%emt 0:00:01]} Kxg3 {[%emt 0:00:02]} 57. e8=Q {[%emt 0:00:11]} 1-0

[Event "EWIBCC 2019"]
[Site "Monte-Carlo"]
[Date "2019.11.29"]
[Round "11.6"]
[White "Muzychuk, Mariya"]
[Black "Michna, Marta"]
[Result "0-1"]
[ECO "C18"]
[WhiteElo "2552"]
[BlackElo "2366"]
[Annotator "RC"]
[PlyCount "86"]
[EventDate "2019.11.29"]
[EventType "swiss"]
[EventCountry "MNC"]
[SourceTitle "playchess.com"]
[Source "ChessBase"]
[SourceQuality "1"]
[TimeControl "180+2"]

1. e4 {[%emt 0:00:00]} e6 {[%emt 0:00:00]} 2. d4 {[%emt 0:00:00]} d5 {[%emt 0:00:01]} 3. Nc3 {[%emt 0:00:00]} Bb4 {[%emt 0:00:03]} 4. e5 {[%emt 0:00:01]} c5 {[%emt 0:00:01]} 5. a3 {[%emt 0:00:00]} Bxc3+ {[%emt 0:00:03]} 6. bxc3 {[%emt 0:00:01]} Nc6 {[%emt 0:00:01]} 7. Qg4 {[%emt 0:00:03]} g6 {[%emt 0:00:02]} 8. Nf3 {[%emt 0:00:30]} Qa5 {[%emt 0:00:10]} 9. Bd2 {[%emt 0:00:01]} c4 {[%emt 0:00:03]} 10. Be2 {[%emt 0:00:05]} Qa4 {[%emt 0:00:07]} 11. Bd1 {[%emt 0:00:01]} Bd7 {[%emt 0:00:07]} 12. Qf4 {[%emt 0:00:06]} h6 {[%emt 0:00:10]} 13. h4 {[%emt 0:00:05]} Rh7 {[%emt 0:00:03]} 14. h5 {[%emt 0:00:13]} g5 {[%emt 0:00:04]} 15. Qg4 {[%emt 0:00:01]} f5 {[%emt 0:00:12]} 16. Qg3 {[%emt 0:00:14]} O-O-O {[%emt 0:00:25]} 17. Bxg5 {[%emt 0:00:06]} hxg5 {[%emt 0:00:29]} 18. Nxg5 {[%emt 0:00:01]} Rg7 {[%emt 0:00:08]} 19. h6 {[%emt 0:00:06]} Nxh6 {[%emt 0:00:03]} 20. Rxh6 {[%emt 0:00:01]} Qa5 {[%emt 0:00:07]} 21. Kf1 {[%emt 0:00:41]} f4 {[%emt 0:00:17]} 22. Qxf4 {[%emt 0:00:08]} Qxc3 {[%emt 0:00:02]} 23. Rb1 {[%emt 0:00:02]} Qxd4 {[%emt 0:00:32]} 24. Qxd4 {[%emt 0:00:24]} Nxd4 {[%emt 0:00:02]} 25. Nf3 {[%emt 0:00:00]} Nf5 {[%emt 0:00:04]} 26. Rf6 {[%emt 0:00:12]} d4 {[%emt 0:00:20]} 27. Be2 {[%emt 0:00:01]} b5 {[%emt 0:00:01]} 28. a4 {[%emt 0:00:53]} a6 29. axb5 {[%emt 0:00:00]} axb5 {[%emt 0:00:01]} 30. Rd1 {[%emt 0:00:00]} Bc6 {[%emt 0:00:11]} 31. Rxe6 {[%emt 0:00:00]} Be4 {[%emt 0:00:01]} 32. Rc1 {[%emt 0:00:00]} Kc7 {[%emt 0:00:03]} 33. Rf6 {[%emt 0:00:00]} Rh8 {[%emt 0:00:01]} 34. g3 {[%emt 0:00:00]} Rh1+ {[%emt 0:00:02]} 35. Ng1 {[%emt 0:00:00]} Rgh7 {[%emt 0:00:06]} 36. Bg4 {[%emt 0:00:00]} Rxg1+ {[%emt 0:00:10]} 37. Ke2 {[%emt 0:00:00]} Rxc1 {[%emt 0:00:00]} 38. Bxf5 {[%emt 0:00:01]} Bxf5 39. Rxf5 {[%emt 0:00:01]} Rxc2+ {[%emt 0:00:06]} 40. Kf3 {[%emt 0:00:01]} b4 {[%emt 0:00:00]} 41. e6 {[%emt 0:00:01]} Kd6 {[%emt 0:00:00]} 42. Rb5 {[%emt 0:00:02]} Kxe6 {[%emt 0:00:00]} 43. Rxb4 {[%emt 0:00:01]} Kd5 {[%emt 0:00:00]} 0-1

[Event "EWIBCC 2019"]
[Site "Monte-Carlo"]
[Date "2019.11.29"]
[Round "11.7"]
[White "Paehtz, Elisabeth"]
[Black "Reizniece-Ozola, Dana"]
[Result "1-0"]
[ECO "A48"]
[WhiteElo "2484"]
[BlackElo "2305"]
[Annotator "RC"]
[PlyCount "80"]
[EventDate "2019.11.29"]
[EventType "swiss"]
[EventCountry "MNC"]
[SourceTitle "playchess.com"]
[Source "ChessBase"]
[SourceQuality "1"]
[TimeControl "180+2"]

1. d4 {[%emt 0:00:00]} Nf6 {[%emt 0:00:00]} 2. Nf3 {[%emt 0:00:00]} g6 {[%emt 0:00:00]} 3. Bg5 {[%emt 0:00:01]} Bg7 {[%emt 0:00:01]} 4. Nbd2 {[%emt 0:00:01]} d6 {[%emt 0:00:02]} 5. c3 {[%emt 0:00:02]} O-O {[%emt 0:00:04]} 6. e3 {[%emt 0:00:06]} b6 {[%emt 0:00:03]} 7. Bc4 {[%emt 0:00:03]} Bb7 {[%emt 0:00:01]} 8. a4 {[%emt 0:00:01]} a6 {[%emt 0:00:14]} 9. O-O {[%emt 0:00:03]} Nbd7 {[%emt 0:00:01]} 10. Re1 {[%emt 0:00:01]} h6 {[%emt 0:00:08]} 11. Bh4 {[%emt 0:00:02]} e5 {[%emt 0:00:06]} 12. dxe5 {[%emt 0:00:05]} dxe5 {[%emt 0:00:02]} 13. e4 {[%emt 0:00:04]} Qe7 {[%emt 0:00:07]} 14. Bf1 {[%emt 0:00:06]} g5 {[%emt 0:00:06]} 15. Bg3 {[%emt 0:00:02]} Nh5 {[%emt 0:00:02]} 16. Nc4 {[%emt 0:00:03]} Nxg3 {[%emt 0:00:03]} 17. hxg3 {[%emt 0:00:03]} Nc5 {[%emt 0:00:04]} 18. Nfd2 {[%emt 0:00:08]} Rad8 {[%emt 0:00:18]} 19. Qc2 {[%emt 0:00:04]} a5 {[%emt 0:00:32]} 20. Ne3 {[%emt 0:00:05]} Rd7 {[%emt 0:00:33]} 21. Nf5 {[%emt 0:00:24]} Qf6 {[%emt 0:00:01]} 22. g4 {[%emt 0:00:07]} Rfd8 {[%emt 0:00:02]} 23. Nc4 {[%emt 0:00:03]} Qc6 {[%emt 0:00:26]} 24. f3 {[%emt 0:00:31]} Kf8 {[%emt 0:00:17]} 25. Nce3 {[%emt 0:00:24]} Qf6 {[%emt 0:00:14]} 26. Rad1 {[%emt 0:00:05]} Ne6 {[%emt 0:00:12]} 27. Bb5 {[%emt 0:00:06]} c6 {[%emt 0:00:03]} 28. Bf1 {[%emt 0:00:03]} Nf4 {[%emt 0:00:04]} 29. Rxd7 {[%emt 0:00:06]} Rxd7 {[%emt 0:00:01]} 30. Rd1 {[%emt 0:00:03]} Qd8 {[%emt 0:00:00]} 31. Rxd7 {[%emt 0:00:05]} Qxd7 {[%emt 0:00:02]} 32. Nc4 {[%emt 0:00:08]} Qc7 {[%emt 0:00:05]} 33. Qd2 {[%emt 0:00:06]} b5 {[%emt 0:00:05]} 34. Qd6+ {[%emt 0:00:02]} Qxd6 {[%emt 0:00:01]} 35. Ncxd6 {[%emt 0:00:01]} Ba6 {[%emt 0:00:01]} 36. axb5 {[%emt 0:00:02]} cxb5 {[%emt 0:00:01]} 37. Nxb5 {[%emt 0:00:08]} Bf6 {[%emt 0:00:04]} 38. g3 {[%emt 0:00:06]} Ne6 {[%emt 0:00:03]} 39. Nbd6 {[%emt 0:00:05]} Bxf1 {[%emt 0:00:03]} 40. Kxf1 {[%emt 0:00:02]} Be7 {[%emt 0:00:08]} 1-0

[Event "EWIBCC 2019"]
[Site "Monte-Carlo"]
[Date "2019.11.29"]
[Round "11.8"]
[White "Osmak, Iulija"]
[Black "Bodnaruk, Anastasia"]
[Result "0-1"]
[ECO "A00"]
[WhiteElo "2401"]
[BlackElo "2412"]
[Annotator "ChessBase"]
[PlyCount "136"]
[EventDate "2019.11.29"]
[EventType "swiss"]
[EventCountry "MNC"]
[SourceTitle "playchess.com"]
[Source "ChessBase"]
[SourceQuality "1"]
[TimeControl "180+2"]

1. b4 {[%emt 0:00:00]} e5 {[%emt 0:00:00]} 2. Bb2 {[%emt 0:03:04]} Bxb4 {[%emt 0:00:10]} 3. Bxe5 {[%emt 0:00:00]} Nf6 {[%emt 0:00:01]} 4. e3 {[%emt 0:00:00]} O-O {[%emt 0:00:03]} 5. Nf3 {[%emt 0:00:00]} d5 {[%emt 0:00:03]} 6. Be2 {[%emt 0:00:00]} Re8 {[%emt 0:00:04]} 7. O-O {[%emt 0:00:00]} Bd6 {[%emt 0:00:07]} 8. Bb2 {[%emt 0:00:00]} c5 {[%emt 0:00:04]} 9. d3 {[%emt 0:00:00]} Nc6 {[%emt 0:00:02]} 10. Nbd2 {[%emt 0:00:00]} b6 {[%emt 0:00:04]} 11. c4 {[%emt 0:00:00]} dxc4 {[%emt 0:00:51]} 12. Nxc4 {[%emt 0:00:00]} Bc7 {[%emt 0:00:01]} 13. a4 {[%emt 0:00:00]} Be6 {[%emt 0:00:16]} 14. Qc2 {[%emt 0:00:00]} Nd5 {[%emt 0:00:07]} 15. Rad1 {[%emt 0:00:00]} Qe7 {[%emt 0:00:03]} 16. d4 {[%emt 0:00:00]} Ndb4 {[%emt 0:00:17]} 17. Qc3 {[%emt 0:00:00]} Nd5 {[%emt 0:00:07]} 18. Qc2 {[%emt 0:00:00]} Ncb4 {[%emt 0:00:07]} 19. Qb1 {[%emt 0:00:00]} Rac8 {[%emt 0:00:07]} 20. dxc5 {[%emt 0:00:00]} bxc5 {[%emt 0:00:01]} 21. Nfd2 {[%emt 0:00:00]} Qh4 {[%emt 0:00:15]} 22. g3 {[%emt 0:00:00]} Qh6 {[%emt 0:00:08]} 23. Bf3 {[%emt 0:00:00]} Bh3 {[%emt 0:00:08]} 24. Rfe1 {[%emt 0:00:00]} Nf6 {[%emt 0:00:04]} 25. Nb3 {[%emt 0:00:00]} Bb8 {[%emt 0:00:05]} 26. Nd6 {[%emt 0:00:00]} Bxd6 {[%emt 0:00:01]} 27. Rxd6 {[%emt 0:00:00]} Re6 {[%emt 0:00:01]} 28. Rxe6 {[%emt 0:00:00]} Bxe6 {[%emt 0:00:02]} 29. Nxc5 {[%emt 0:00:00]} Rxc5 {[%emt 0:00:04]} 30. Bxf6 {[%emt 0:00:01]} Nc2 {[%emt 0:00:05]} 31. Rc1 {[%emt 0:00:37]} Qxf6 {[%emt 0:00:03]} 32. Be4 {[%emt 0:00:04]} g6 {[%emt 0:00:22]} 33. Rxc2 {[%emt 0:00:02]} Re5 {[%emt 0:00:05]} 34. Rd2 {[%emt 0:00:05]} Kg7 {[%emt 0:00:04]} 35. Bg2 {[%emt 0:00:02]} Ra5 {[%emt 0:00:02]} 36. Rd4 {[%emt 0:00:02]} Qe5 {[%emt 0:00:02]} 37. Qd1 {[%emt 0:00:03]} Qc5 {[%emt 0:00:02]} 38. Qd2 {[%emt 0:00:02]} Ra6 {[%emt 0:00:03]} 39. Qb4 {[%emt 0:00:01]} Qc1+ {[%emt 0:00:02]} 40. Bf1 {[%emt 0:00:04]} Rb6 {[%emt 0:00:00]} 41. Qd2 {[%emt 0:00:02]} Qa1 {[%emt 0:00:03]} 42. Kg2 {[%emt 0:00:02]} Rb1 {[%emt 0:00:01]} 43. Be2 {[%emt 0:00:02]} Rg1+ {[%emt 0:00:01]} 44. Kf3 {[%emt 0:00:00]} h5 {[%emt 0:00:05]} 45. Rf4 {[%emt 0:00:03]} Bg4+ {[%emt 0:00:01]} 46. Ke4 {[%emt 0:00:03]} Qxa4+ {[%emt 0:00:01]} 47. Ke5 {[%emt 0:00:03]} Qe8+ {[%emt 0:00:02]} 48. Kd4 {[%emt 0:00:03]} Qd7+ {[%emt 0:00:01]} 49. Kc3 {[%emt 0:00:01]} Qc7+ {[%emt 0:00:04]} 50. Rc4 {[%emt 0:00:02]} Qa5+ {[%emt 0:00:01]} 51. Kd3 {[%emt 0:00:02]} Qd5+ {[%emt 0:00:02]} 52. Rd4 {[%emt 0:00:02]} Bf5+ {[%emt 0:00:02]} 53. Kc3 {[%emt 0:00:04]} Qc5+ {[%emt 0:00:02]} 54. Rc4 {[%emt 0:00:02]} Qa3+ {[%emt 0:00:01]} 55. Kd4 {[%emt 0:00:02]} Qd6+ {[%emt 0:00:03]} 56. Kc3 {[%emt 0:00:01]} Qa3+ {[%emt 0:00:01]} 57. Kd4 {[%emt 0:00:01]} f6 {[%emt 0:00:05]} 58. Rc7+ {[%emt 0:00:04]} Kh8 {[%emt 0:00:03]} 59. Rc5 {[%emt 0:00:02]} Qa1+ {[%emt 0:00:01]} 60. Qc3 {[%emt 0:00:01]} Qb1 {[%emt 0:00:03]} 61. Rc7 {[%emt 0:00:02]} Qb6+ {[%emt 0:00:02]} 62. Qc5 {[%emt 0:00:02]} Qb2+ {[%emt 0:00:00]} 63. Kd5 {[%emt 0:00:05]} Qb3+ {[%emt 0:00:03]} 64. Bc4 {[%emt 0:00:01]} Rd1+ {[%emt 0:00:01]} 65. Kc6 {[%emt 0:00:02]} Qa4+ {[%emt 0:00:01]} 66. Bb5 {[%emt 0:00:02]} Be4+ {[%emt 0:00:04]} 67. Qd5 Bxd5+ {[%emt 0:00:01]} 68. Kc5 {[%emt 0:00:05]} Qa3# {[%emt 0:00:08] Kd4} 0-1

[Event "EWIBCC 2019"]
[Site "Monte-Carlo"]
[Date "2019.11.29"]
[Round "11.9"]
[White "Savina, Anastasia"]
[Black "Buksa, Nataliya"]
[Result "1-0"]
[ECO "D35"]
[WhiteElo "2354"]
[BlackElo "2410"]
[Annotator "NA"]
[PlyCount "69"]
[EventDate "2019.11.29"]
[EventType "swiss"]
[EventCountry "MNC"]
[SourceTitle "playchess.com"]
[Source "ChessBase"]
[SourceQuality "1"]
[TimeControl "180+2"]

1. d4 {[%emt 0:00:00]} d5 {[%emt 0:00:00]} 2. c4 {[%emt 0:00:01]} e6 {[%emt 0:00:00]} 3. Nc3 {[%emt 0:00:01]} Nf6 {[%emt 0:00:00]} 4. cxd5 {[%emt 0:00:05]} exd5 {[%emt 0:00:00]} 5. Bg5 {[%emt 0:00:01]} c6 {[%emt 0:00:01]} 6. e3 {[%emt 0:00:02]} Nbd7 {[%emt 0:00:01]} 7. Bd3 {[%emt 0:00:13]} h6 {[%emt 0:00:07]} 8. Bf4 {[%emt 0:00:03]} Be7 {[%emt 0:00:17]} 9. h3 {[%emt 0:00:04]} g5 {[%emt 0:00:09]} 10. Bg3 {[%emt 0:00:11]} Nb6 {[%emt 0:00:01]} 11. Nf3 {[%emt 0:00:05]} Be6 {[%emt 0:00:01]} 12. Qc2 {[%emt 0:00:15]} Qc8 {[%emt 0:00:11]} 13. Ne5 {[%emt 0:00:24]} Nh5 {[%emt 0:00:03]} 14. Bh2 {[%emt 0:00:03]} Bf6 {[%emt 0:00:07]} 15. O-O-O {[%emt 0:00:23]} Ng7 {[%emt 0:00:02]} 16. g4 {[%emt 0:00:18]} Qd8 {[%emt 0:00:06]} 17. Kb1 {[%emt 0:00:07]} Qe7 {[%emt 0:00:01]} 18. Rc1 {[%emt 0:00:05]} h5 {[%emt 0:00:04]} 19. f3 {[%emt 0:00:05]} hxg4 {[%emt 0:00:03]} 20. hxg4 {[%emt 0:00:03]} Nd7 {[%emt 0:00:04]} 21. f4 {[%emt 0:00:15]} Bxg4 {[%emt 0:00:06]} 22. Nxg4 {[%emt 0:00:05]} gxf4 {[%emt 0:00:14]} 23. Bxf4 {[%emt 0:00:02]} Rxh1 {[%emt 0:00:07]} 24. Rxh1 {[%emt 0:00:04]} Ne6 {[%emt 0:00:03]} 25. Nxf6+ {[%emt 0:00:09]} Qxf6 {[%emt 0:00:01]} 26. Bf5 {[%emt 0:00:21]} Nxf4 {[%emt 0:00:25]} 27. exf4 {[%emt 0:00:07]} Qxd4 {[%emt 0:00:03]} 28. Qe2+ {[%emt 0:00:11]} Kd8 {[%emt 0:00:10]} 29. Bxd7 {[%emt 0:00:06]} Kxd7 {[%emt 0:00:00]} 30. Qg4+ {[%emt 0:00:04]} Kc7 {[%emt 0:00:01]} 31. Qf5 {[%emt 0:00:01]} f6 {[%emt 0:00:11]} 32. Qe6 {[%emt 0:00:04]} b5 {[%emt 0:00:17]} 33. Nxb5+ {[%emt 0:00:03]} Kb6 {[%emt 0:00:17]} 34. Nxd4 {[%emt 0:00:01]} Rd8 {[%emt 0:00:01]} 35. Qxc6+ {[%emt 0:00:02]} 1-0

[Event "EWIBCC 2019"]
[Site "Monte-Carlo"]
[Date "2019.11.29"]
[Round "11.10"]
[White "Guichard, Pauline"]
[Black "Zhukova, Natalia"]
[Result "0-1"]
[ECO "A13"]
[WhiteElo "2407"]
[BlackElo "2323"]
[Annotator "NA"]
[PlyCount "88"]
[EventDate "2019.11.29"]
[EventType "swiss"]
[EventCountry "MNC"]
[SourceTitle "playchess.com"]
[Source "ChessBase"]
[SourceQuality "1"]
[TimeControl "180+2"]

1. Nf3 {[%emt 0:00:00]} d5 {[%emt 0:00:00]} 2. c4 {[%emt 0:00:00]} e6 {[%emt 0:00:04]} 3. g3 {[%emt 0:00:04]} Nf6 {[%emt 0:00:04]} 4. Bg2 {[%emt 0:00:01]} d4 {[%emt 0:00:19]} 5. d3 {[%emt 0:00:21]} c5 {[%emt 0:00:01]} 6. e4 {[%emt 0:00:03]} Nc6 {[%emt 0:00:07]} 7. e5 {[%emt 0:00:05]} Nd7 {[%emt 0:00:11]} 8. Qe2 {[%emt 0:00:01]} Qc7 {[%emt 0:00:13]} 9. Bf4 {[%emt 0:00:03]} h6 {[%emt 0:00:08]} 10. h4 {[%emt 0:00:01]} Be7 {[%emt 0:00:00]} 11. Nbd2 {[%emt 0:00:06]} b6 {[%emt 0:00:05]} 12. a3 {[%emt 0:00:17]} Bb7 {[%emt 0:00:03]} 13. g4 {[%emt 0:00:15]} O-O-O {[%emt 0:00:19]} 14. Bg3 {[%emt 0:00:09]} h5 {[%emt 0:00:47]} 15. g5 {[%emt 0:00:10]} Nf8 {[%emt 0:00:01]} 16. O-O-O {[%emt 0:00:21]} Ng6 {[%emt 0:00:01]} 17. Rhe1 {[%emt 0:00:07]} Kb8 {[%emt 0:00:11]} 18. Kb1 {[%emt 0:00:02]} Ka8 {[%emt 0:00:01]} 19. Ka2 {[%emt 0:00:10]} a6 {[%emt 0:00:05]} 20. Rc1 {[%emt 0:00:04]} Ka7 {[%emt 0:00:02]} 21. Bh1 {[%emt 0:00:11]} Rd7 {[%emt 0:00:04]} 22. Nb3 {[%emt 0:00:12]} Qb8 {[%emt 0:00:06]} 23. Rc2 {[%emt 0:00:04]} Bd8 {[%emt 0:00:10]} 24. Qd1 {[%emt 0:00:09]} Bc7 {[%emt 0:00:01]} 25. Rce2 {[%emt 0:00:01]} Qa8 {[%emt 0:00:02]} 26. Nfd2 {[%emt 0:00:12]} Nce7 {[%emt 0:00:10]} 27. Bxb7 {[%emt 0:00:08]} Qxb7 {[%emt 0:00:01]} 28. Ne4 {[%emt 0:00:02]} Nf5 {[%emt 0:00:01]} 29. Nbxc5 {[%emt 0:00:17]} bxc5 {[%emt 0:00:02]} 30. Nxc5 {[%emt 0:00:01]} Qc6 {[%emt 0:00:01]} 31. Nxd7 {[%emt 0:00:02]} Qxd7 {[%emt 0:00:01]} 32. Rh1 {[%emt 0:00:10]} Nxg3 {[%emt 0:00:03]} 33. fxg3 {[%emt 0:00:01]} Nxe5 {[%emt 0:00:03]} 34. Rf1 {[%emt 0:00:04]} Ng4 {[%emt 0:00:06]} 35. Qd2 {[%emt 0:00:11]} Bxg3 {[%emt 0:00:05]} 36. Qa5 {[%emt 0:00:03]} Bc7 {[%emt 0:00:03]} 37. Qc5+ {[%emt 0:00:01]} Bb6 {[%emt 0:00:01]} 38. Qb4 {[%emt 0:00:03]} Rb8 {[%emt 0:00:03]} 39. c5 {[%emt 0:00:01]} Bc7 {[%emt 0:00:02]} 40. Qc4 {[%emt 0:00:01]} Ne3 {[%emt 0:00:03]} 41. Rxe3 {[%emt 0:00:02]} dxe3 {[%emt 0:00:00]} 42. d4 {[%emt 0:00:02]} Qd5 {[%emt 0:00:05]} 43. Qxd5 {[%emt 0:00:04]} exd5 {[%emt 0:00:01]} 44. Kb1 {[%emt 0:00:02]} Bg3 {[%emt 0:00:06]} 0-1